Cogmind - Beta 16.1 @@@ ROGUE MODE // 2026.02.28 @ 23:53:06 Player: Zable Result: Self-destructed Performance ------------- Evolutions (2) 1000 Regions Visited (6) 1200 Robots Destroyed (23) 115 Value Destroyed (684) 684 Prototype IDs (24) 480 Alien Tech Used (0) 0 Bonus (300) 300 TOTAL SCORE: 3779 Bonus ------- Aligned with FarCom 300 Cogmind --------- Core Integrity 444/550 Matter 300/300 Energy 240/240 System Corruption 0% Temperature Cool (0) Movement Walking (90) Location -8/Storage Parts ------- > --- POWER (1) -------- Nuclear Core > --- PROPULSION (2) --- Potential Leg Potential Leg > --- UTILITY (5) ------ Improved Heat Sink Medium Storage Unit Light Armor Plating > --- WEAPON (3) ------- Beam Rifle Heavy Assault Rifle > --- INVENTORY (10) --- Ion Engine Light Nuclear Core Light Treads Light Treads Wheel Compact Wheel Large Matter Pod (150) Grenade Launcher Peak State ------------ > --- POWER ------------ Nuclear Core > --- PROPULSION ------- Potential Leg Potential Leg > --- UTILITY ---------- Improved Heat Sink Medium Storage Unit Light Armor Plating Light Armor Plating > --- WEAPON ----------- Beam Rifle Heavy Assault Rifle Shotgun > --- INVENTORY -------- Ion Engine Light Nuclear Core Light Treads Light Treads Wheel Compact Wheel Large Matter Pod Grenade Launcher [Rating: 36] Favorites ----------- Power Ion Engine Engine Ion Engine Power Core Nuclear Core Propulsion Potential Leg Leg Potential Leg Utility Small Storage Unit Device Improved Terrain Scanner Storage Small Storage Unit Protection Light Armor Plating Weapon Assault Rifle Energy Gun Particle Gun Ballistic Gun Assault Rifle Build | -11 -10 -10 -10 -9 -8 -8 ------- Run | Yrd Mat Min Exi Min Mat Sto Slots Evolved 4 | . . . . . 4 . Power . | . . . . . . . Propulsion . | . . . . . . . Utility 3 | . . . . . 3 . Weapon 1 | . . . . . 1 . Parts Attached 20 | 1 . 4 3 . 10 2 Power 4 | . . 1 . . 3 . Engine 2 | . . 1 . . 1 . Core 2 | . . . . . 2 . Reactor . | . . . . . . . Propulsion 4 | . . 2 2 . . . Treads . | . . . . . . . Leg 4 | . . 2 2 . . . Wheel . | . . . . . . . Hover . | . . . . . . . Flight . | . . . . . . . Utility 5 | 1 . . 1 . 1 2 Device 2 | 1 . . . . . 1 Storage 1 | . . . 1 . . . Processor . | . . . . . . . Hackware . | . . . . . . . Protection 2 | . . . . . 1 1 Artifact . | . . . . . . . Weapon 7 | . . 1 . . 6 . Energy Gun 3 | . . 1 . . 2 . Energy Cannon . | . . . . . . . Ballistic Gun 4 | . . . . . 4 . Ballistic Cannon . | . . . . . . . Launcher . | . . . . . . . Special Weapon . | . . . . . . . Impact Weapon . | . . . . . . . Slashing Weapon . | . . . . . . . Piercing Weapon . | . . . . . . . Special Melee Weapon . | . . . . . . . Unidentified Prototypes 1 | . . . . . 1 . Parts Lost 6 | . . . . 1 3 2 Power . | . . . . . . . Propulsion . | . . . . . . . Utility 2 | . . . . 1 . 1 Weapon 4 | . . . . . 3 1 Highest Loss Streak 2 | . . . . 1 1 2 To Critical Strikes . | . . . . . . . Average Backups 7 | 6 7 8 8 8 7 8 Power 1 | 1 1 1 1 1 1 2 Propulsion 4 | 4 4 4 4 4 4 4 Utility . | . . 1 1 1 1 1 Weapon 1 | 1 1 2 2 2 1 1 Tool/Special . | . . . . . . . Unused Backups 12 | . . 8 2 . . 2 Power 2 | . . 2 . . . . Propulsion 4 | . . 4 . . . . Utility 3 | . . . 2 . . 1 Weapon 3 | . . 2 . . . 1 Tool/Special . | . . . . . . . Average Slot Usage (%) 85 | . 100 100 100 88 65 78 Engine 8 | . 14 14 14 14 2 . Core 3 | . . . . . 6 9 Leg 23 | . 28 28 28 28 18 18 Device 7 | . 14 14 14 3 . 2 Storage 11 | . 14 14 14 14 9 9 Protection 4 | . . . . . 6 13 Energy Gun 11 | . 14 14 14 14 7 9 Ballistic Gun 15 | . 14 14 14 14 15 17 Peak Build Rating 36 | 9 9 10 28 28 32 36 Average Rating 21 | 6 9 9 22 25 29 33 On Entrance 17 | 6 9 9 10 28 25 32 Avg Prop Armor Cover (%) . | . . . . . . . Naked Turns . | . . . . . . . Heaviest Build 33 | 12 12 16 21 21 29 33 Greatest Support 60 | 20 20 20 60 60 60 60 Greatest Overweight (x) . | . . . . . . . Average Overweight (x) . | . . . . . . . Largest Inventory Capacity 10 | 8 8 8 10 10 10 10 Average Capacity 8 | 8 8 8 8 10 10 10 Most Carried 9 | 6 8 8 8 8 9 8 Average Carried 7 | 6 7 8 8 8 7 8 Final Capacity 10 | 8 8 8 10 10 10 10 Final Carried 8 | 6 8 8 8 8 8 8 Class Distribution -------------------- 55% | Mutant 16% | Scavenger-Mutant 11% | Scavenger-Skirmisher 10% | Skirmisher 6% | Scavenger-Tank Dominant Class ---------------- Mutant | -10/Materials Scavenger-Mutant | -10/Mines Mutant | -10/Exiles Mutant | -9/Mines Mutant | -8/Materials Scavenger-Tank | -8/Storage Resources | -11 -10 -10 -10 -9 -8 -8 ----------- Run | Yrd Mat Min Exi Min Mat Sto Matter Collected 838 | 230 178 76 . 46 164 144 Remotely . | . . . . . . . Salvage Created 862 | 120 50 111 . 92 227 262 Parts 49 | 10 5 6 . 4 13 11 Haulers Intercepted . | . . . . . . . Recyclers Shooed . | . . . . . . . Parts Field Recycled . | . . . . . . . Retrieved Matter . | . . . . . . . Parts Self-Destructed . | . . . . . . . Prevented . | . . . . . . . Parts Restored . | . . . . . . . Kills | -11 -10 -10 -10 -9 -8 -8 ------- Run | Yrd Mat Min Exi Min Mat Sto Combat Hostiles Destroyed 17 | . 1 2 . 2 7 5 Guns 17 | . 1 2 . 2 7 5 Classes Destroyed 6 | 1 1 1 . . 3 . Worker 1 | . . 1 . . . . Tunneler 5 | 5 . . . . . . Swarmer 3 | . . . . . 3 . Grunt 10 | . 1 2 . 2 1 4 Sentry 3 | . . . . . 2 1 Hunter 1 | . . . . . 1 . Best Kill Streak 3 | 2 1 1 . 2 3 2 Combat Bots Only 3 | . 1 1 . 2 3 2 Max Kills in Single Turn 1 | 1 1 1 . 1 1 1 Gunslinging . | . . . . . . . Exploded . | . . . . . . . Melee . | . . . . . . . Uniques/NPCs Destroyed . | . . . . . . . Combat | -11 -10 -10 -10 -9 -8 -8 -------- Run | Yrd Mat Min Exi Min Mat Sto Hostile Shots Fired 149 | . 3 20 . 19 73 34 Missed 36 | . . 3 . 3 23 7 Hits 113 | . 3 17 . 16 50 27 Projectile 113 | . 3 17 . 16 50 27 Critical Strikes 3 | . . . . . 2 1 Damage Taken 1396 | . 33 202 . 179 570 412 Core 167 | . 11 29 . 21 61 45 Absorbed by Shields . | . . . . . . . Core Remaining (%) 87 | 100 . . . 75 . . Volleys Fired 80 | 13 3 12 . 7 28 17 Largest 3 | 2 2 2 . 2 3 3 Hottest 115 | 60 60 85 . 85 115 102 Shots Fired 178 | 26 6 24 . 14 57 51 Gun 178 | 26 6 24 . 14 57 51 Cannon . | . . . . . . . Launcher . | . . . . . . . Special . | . . . . . . . Kinetic 102 | 13 3 12 . 7 33 34 Thermal 76 | 13 3 12 . 7 24 17 Explosive . | . . . . . . . Electromagnetic . | . . . . . . . Robot Hit Streak 11 | 7 4 7 . 8 6 11 Robot Miss Streak 5 | 1 1 2 . 1 5 3 Penetration Max . | . . . . . . . Secondary Targets 2 | . . 1 . . . 1 Max Gunslinging Chain 1 | . . 1 . . . 1 Shots Hit Robots 121 | 17 4 18 . 11 38 33 Core Hits 44 | 5 2 6 . 3 14 14 Critical Kills . | . . . . . . . Critical Parts Destroyed . | . . . . . . . Critical Strikes 3 | . . . . . 3 . Burn 3 | . . . . . 3 . Melee Attacks . | . . . . . . . Impact . | . . . . . . . Slashing . | . . . . . . . Piercing . | . . . . . . . Sneak Attacks . | . . . . . . . Combat Hostiles . | . . . . . . . Follow-up Attacks . | . . . . . . . Damage Inflicted 1633 | 206 46 228 . 145 528 480 Guns 1633 | 206 46 228 . 145 528 480 Cannons . | . . . . . . . Explosions . | . . . . . . . Melee . | . . . . . . . Ramming . | . . . . . . . Kinetic 944 | 106 24 112 . 67 288 347 Thermal 689 | 100 22 116 . 78 240 133 Explosive . | . . . . . . . Electromagnetic . | . . . . . . . Impact . | . . . . . . . Slashing . | . . . . . . . Piercing . | . . . . . . . Highest Corruption . | . . . . . . . Average Corruption . | . . . . . . . Corruption Purged . | . . . . . . . Corruption Blocked . | . . . . . . . Overload Shots . | . . . . . . . Overflow Damage . | . . . . . . . Projectiles . | . . . . . . . Explosions . | . . . . . . . Melee . | . . . . . . . Knockbacks . | . . . . . . . Impact . | . . . . . . . Kinetic . | . . . . . . . Secondary . | . . . . . . . Self-Inflicted Damage . | . . . . . . . Shots . | . . . . . . . Rammed . | . . . . . . . Targets Rammed . | . . . . . . . Kicked . | . . . . . . . Crushed . | . . . . . . . Highest Temperature 360 | . 12 111 . 254 288 360 Average Temperature 103 | . 10 60 . 137 114 106 Received Heat Transfer 627 | . 18 111 . 102 153 243 Effects 2 | . . . . . 2 . Interference 2 | . . . . . 2 . Siege Activations . | . . . . . . . Martial Activations . | . . . . . . . Shielding Activations . | . . . . . . . Robots Disrupted . | . . . . . . . Combat Hostiles . | . . . . . . . Robots Corrupted . | . . . . . . . Combat Hostiles . | . . . . . . . Parts Fried . | . . . . . . . Impact Corruptions . | . . . . . . . Robots Melted . | . . . . . . . Combat Hostiles . | . . . . . . . Parts Melted 2 | . . . . . 2 . Heat Transferred 1943 | 225 50 262 . 185 888 333 Parts Sabotaged . | . . . . . . . Parts Stolen . | . . . . . . . Parts Stripped . | . . . . . . . Power Chain Reactions . | . . . . . . . Alert | -11 -10 -10 -10 -9 -8 -8 ------- Run | Yrd Mat Min Exi Min Mat Sto Maximum Alert Level . | . . . . . . . Low Security (%) 100 | 100 100 100 . 100 100 100 Level 1 . | . . . . . . . Level 2 . | . . . . . . . Level 3 . | . . . . . . . Level 4 . | . . . . . . . Level 5 . | . . . . . . . High Security . | . . . . . . . Max Security . | . . . . . . . Peak Influence 90 | 10 20 43 . 45 90 75 Initial 16 | . . 3 . . 1 16 Average 21 | 1 3 12 . 23 36 20 Influence Increases 580 | 25 20 55 . 55 275 150 Destroy 0b10 Robot/C 340 | . 20 40 . 40 140 100 Destroy 0b10 Robot/NC 30 | 25 . 5 . . . . Destroy Leader 70 | . . 10 . . 40 20 Successful Hack 5 | . . . . . 5 . Disable Machine 15 | . . . . . . 15 Partial Spotted 15 | . . . . . . 15 Lose Combat Pursuer 105 | . . . . 15 90 . Influence Decreases 525 | 25 10 65 . 50 240 135 Entered New Map 35 | . . 7 . . 4 24 Time Decay 449 | 25 10 58 . 50 215 91 Lost Part 41 | . . . . . 21 20 Squads Dispatched 2 | . . . . . . 2 Investigation 1 | . . . . . . 1 Extermination . | . . . . . . . Reinforcement 1 | . . . . . . 1 Assault . | . . . . . . . Garrison . | . . . . . . . Intercept . | . . . . . . . Searches Triggered . | . . . . . . . Construction Impeded . | . . . . . . . Haulers Reinforced . | . . . . . . . Active Scanning Responses . | . . . . . . . Cargo Convoy Interrupts . | . . . . . . . Stealth | -11 -10 -10 -10 -9 -8 -8 --------- Run | Yrd Mat Min Exi Min Mat Sto Distress Signals 1 | . . . . . . 1 Communications Jammed . | . . . . . . . Distress Signals . | . . . . . . . Times Spotted 36 | . 3 2 . 3 15 13 Peak Tracking Total 7 | . 1 2 . 3 6 7 Tactical Retreats 3 | . . . . 1 2 . Traps | -11 -10 -10 -10 -9 -8 -8 ------- Run | Yrd Mat Min Exi Min Mat Sto Traps Triggered . | . . . . . . . Indirectly . | . . . . . . . Trap Hack Attempts . | . . . . . . . Triggered . | . . . . . . . Disarmed . | . . . . . . . Reprogrammed . | . . . . . . . Reused . | . . . . . . . Traps Extracted . | . . . . . . . Installed . | . . . . . . . Triggered . | . . . . . . . Machines | -11 -10 -10 -10 -9 -8 -8 ---------- Run | Yrd Mat Min Exi Min Mat Sto Machines Disabled 1 | . . . . . . 1 Max in Single Turn 1 | . . . . . . 1 Machines Repaired . | . . . . . . . Machines Dismantled . | . . . . . . . Machines Sabotaged . | . . . . . . . Overloaded Fab Kills . | . . . . . . . Hacking | -11 -10 -10 -10 -9 -8 -8 --------- Run | Yrd Mat Min Exi Min Mat Sto Machines Accessed 3 | . . . 1 . 1 1 Terminals 2 | . . . . . 1 1 Fabricators . | . . . . . . . Repair Stations . | . . . . . . . Recycling Units . | . . . . . . . Scanalyzers . | . . . . . . . Garrison Access . | . . . . . . . Total Hacks 5 | . . . 1 . 2 2 Successful 2 | . . . 1 . 1 . Failed 3 | . . . . . 1 2 Catastrophic 1 | . . . . . . 1 Database Lockouts . | . . . . . . . Manual 3 | . . . 1 . 2 . Terminals 4 | . . . . . 2 2 Fabricators . | . . . . . . . Repair Stations . | . . . . . . . Recycling Units . | . . . . . . . Scanalyzers . | . . . . . . . Garrison Access . | . . . . . . . Terminal Hacks 1 | . . . 1 . . . Proto ID Catalog 1 | . . . 1 . . . Fabricator Hacks . | . . . . . . . Repair Station Hacks . | . . . . . . . Recycling Unit Hacks . | . . . . . . . Scanalyzer . | . . . . . . . Garrison Access Hacks . | . . . . . . . Unauthorized Hacks 1 | . . . . . 1 . Terminals 1 | . . . . . 1 . Botnet 1 | . . . . . 1 . Fabricators . | . . . . . . . Repair Stations . | . . . . . . . Recycling Units . | . . . . . . . Scanalyzers . | . . . . . . . Garrison Access . | . . . . . . . Data Cores Recovered . | . . . . . . . Used . | . . . . . . . Hacking Detections 2 | . . . . . 1 1 Full Trace Events 1 | . . . . . . 1 Feedback Events . | . . . . . . . Feedback Blocked . | . . . . . . . Robot Schematics Acquired . | . . . . . . . Robots Built . | . . . . . . . Authchips . | . . . . . . . Time . | . . . . . . . Total Robot Build Rating . | . . . . . . . Part Schematics Acquired . | . . . . . . . Parts Built . | . . . . . . . Authchips . | . . . . . . . Time . | . . . . . . . Total Part Build Rating . | . . . . . . . Part Studies Acquired . | . . . . . . . Parts Repaired . | . . . . . . . Time . | . . . . . . . Parts Recycled . | . . . . . . . Recycled Matter . | . . . . . . . Retrieved Matter . | . . . . . . . Retrieved Components . | . . . . . . . Parts Scanalyzed . | . . . . . . . Part Schematics Acquired . | . . . . . . . Parts Damaged . | . . . . . . . Bothacking | -11 -10 -10 -10 -9 -8 -8 ------------ Run | Yrd Mat Min Exi Min Mat Sto Used RIF Installer . | . . . . . . . Robots Hacked . | . . . . . . . Non-combat . | . . . . . . . Combat . | . . . . . . . Robot Hacks Applied . | . . . . . . . Relay Couplers Released . | . . . . . . . Fabnet Peak Effective % . | . . . . . . . Robots Rewired . | . . . . . . . Allies Hacked . | . . . . . . . Hacks Repelled . | . . . . . . . Allies | -11 -10 -10 -10 -9 -8 -8 -------- Run | Yrd Mat Min Exi Min Mat Sto Total Allies . | . . . . . . . Largest Group . | . . . . . . . Highest-Rated Group . | . . . . . . . Highest-Rated Ally . | . . . . . . . Total Orders . | . . . . . . . Ally Attacks . | . . . . . . . Total Damage . | . . . . . . . Kills . | . . . . . . . Allies Corrupted . | . . . . . . . Allies Melted . | . . . . . . . Intel | -11 -10 -10 -10 -9 -8 -8 ------- Run | Yrd Mat Min Exi Min Mat Sto Active Infowar (turns) 823 | 20 139 202 441 21 . . Terrain 823 | 20 139 202 441 21 . . Robot Analysis Total . | . . . . . . . Derelict Logs Recovered . | . . . . . . . Drone Launches . | . . . . . . . Drone Recoveries . | . . . . . . . Exploration | -11 -10 -10 -10 -9 -8 -8 ------------- Run | Yrd Mat Min Exi Min Mat Sto Turns Passed 1839 | 191 139 202 441 120 490 256 Spaces Moved 1340 | 86 100 120 446 89 398 101 Core . | . . . . . . . Treads . | . . . . . . . Legs 1340 | 86 100 120 446 89 398 101 Wheels . | . . . . . . . Hover . | . . . . . . . Flight . | . . . . . . . Fastest Speed 45 | 120 120 120 90 90 45 90 Average Speed 99 | 120 120 120 97 90 88 90 Slowest Speed 120 | 120 120 120 120 90 90 90 Overloaded Moves 15 | . . . . . 15 . Propulsion Burnouts . | . . . . . . . Robots Hopped . | . . . . . . . Potential Cave-ins . | . . . . . . . Cave-ins Triggered . | . . . . . . . Exploration Rate (%) 31 | 4 32 31 90 32 17 17 Regions Visited 6 Branch Regions 4 Pre-discovered Areas . | . . . . . . . Known Exits Taken . | . . . . . . . Unknown Exits Taken 6 | 1 1 1 1 1 1 . Scrap Searched . | . . . . . . . Spaces Dug . | . . . . . . . Terrain Destroyed . | . . . . . . . Melee . | . . . . . . . Projectile . | . . . . . . . AOE . | . . . . . . . Terrain Rammed . | . . . . . . . Walls Destroyed . | . . . . . . . Machines Disabled . | . . . . . . . Actions | -11 -10 -10 -10 -9 -8 -8 --------- Run | Yrd Mat Min Exi Min Mat Sto Total 1689 | 147 113 156 451 114 482 226 Wait 244 | 48 9 17 . 19 45 106 Move 1334 | 85 99 119 445 88 397 101 Hop . | . . . . . . . Pick Up 2 | . 2 . . . . . Fast Attach 8 | 1 . . . . 5 2 Attach 1 | . . . . . 1 . Detach 1 | . . . . . 1 . Swap 11 | . . 4 3 . 4 . Drop 8 | . . 4 3 . 1 . Fire 80 | 13 3 12 . 7 28 17 Melee . | . . . . . . . Ram . | . . . . . . . Kick . | . . . . . . . Crush . | . . . . . . . Escape Stasis . | . . . . . . . Rewire . | . . . . . . . Trap . | . . . . . . . Miscellaneous . | . . . . . . . Route ------- -11/Scrapyard -10/Materials -10/Mines -10/Exiles (discovered 2 exits: [*Min x2]) -9/Mines -8/Materials -8/Storage History --------- Turn | Location | Event 7 | -11/Scrapyard | Discovered new exit (range 3) 192 | -11/Scrapyard | Entered Materials 306 | -10/Materials | Discovered new exit (range 6) 307 | -10/Materials | Build established: Mutant 331 | -10/Materials | Entered Mines 527 | -10/Mines | Deemed a non-threat by the Exiles lab entrance 528 | -10/Mines | Discovered new exit (range 5) 533 | -10/Mines | Entered Exiles 549 | -10/Exiles | Discovered new exit (range 15) 567 | -10/Exiles | Met 8R-AWN 587 | -10/Exiles | Met EX-HEX 622 | -10/Exiles | Met EX-BIN 637 | -10/Exiles | Aligned with FarCom system 638 | -10/Exiles | Given EX-Vault access code 665 | -10/Exiles | Build established: Scavenger-Mutant 665 | -10/Exiles | Opened EX-Vault 675 | -10/Exiles | Found Potential Leg 678 | -10/Exiles | Found Potential Leg 723 | -10/Exiles | Warned to stay clear of 0b10 Research branches 749 | -10/Exiles | Met EX-DEC 809 | -10/Exiles | Visited The Gauntlet 960 | -10/Exiles | Discovered new exit (range 11) 974 | -10/Exiles | Left Exiles lab with Potential Leg 974 | -10/Exiles | Entered Mines 1023 | -9/Mines | Assembled infested the area 1028 | -9/Mines | Assisted by a Guerilla fighting off Assembled 1089 | -9/Mines | Discovered new exit (range 5) 1094 | -9/Mines | Entered Materials 1094 | -8/Materials | Evolved 4 slots: Utility x3, Weapon x1 1171 | -8/Materials | Discovered new exit (range 14) 1584 | -8/Materials | Entered Storage 1840 | -8/Storage | Self-destructed Last Messages --------------- 01790_ R-06 Scavenger collects Aluminum Leg. 01793_ K-01 Serf collects debris. 01793_ R-06 Scavenger collects Lgt. Nuclear Core. 01797_ K-01 Serf collects debris. 01804_ Lgt. Armor Plating destroyed. 01806_ K-01 Serf cleans the Transfer Shaft. 01808_ G-47 Trooper destroyed. 01810_ K-01 Serf collects debris. 01812_ R-06 Scavenger collects Lgt. Nuclear Core. 01813_ K-01 Serf collects debris. 01818_ G-47 Trooper destroyed. 01820_ K-01 Serf collects debris. 01822_ Acquired 46 matter. 01822_ R-06 Scavenger collects Aluminum Leg. 01823_ K-01 Serf collects debris. 01826_ Connecting with Door Terminal... 01826_ Current location identified: Storage 01826_ ALERT: Suspicious activity at Terminal S009. Dispatching Investigation squad. 01830_ Shotgun destroyed. 01839_ K-01 Serf cleans the Transfer Shaft. Map ----- +----------------------------------------------------+ | | | | | | | | | | | ?????????????????????????????????????????????????? | | ?????????????????????????????????????????????????? | | ?????????????????????????????????????????????????? | | ????????????????????????######Y??????????????????? | | ????????????????????????# #???????????????? | | ????????????????????????# """ #???????????????? | | ????????????????????????# """ #??????????#####? | | ????????????????????????# """ #??????????# #? | | ????????????????????????# ############ #? | | ????????????????????????# """ ## # #? | | ????????????????????????# % """ ## """ """ # #? | | ????????????????????????# """ ## """ "Y" # #? | | ????????????????????????#%= %k ## """ " " + #? | | ??????????????????????###+###/##### """ # #? | | ?????????##???????????#T# + " " # ^#? | | ?????????# ?????????" + ###% + #? | | ?????????# ???????### #?# # #? | | ?????????# ???????# #?########### #? | | ?????????# ###### #???????????# #? | | ?????????# sss #???????????# #? | | ?????????# ######@g #???????????# #? | | ?????????# s???????# #???????????# #? | | ??????? / w ?????????# #???????????+ #? | | ??????#######???????????# g ^#???????????# #? | | ????????????????????????# #???????????? #? | | ???????????????????????? #???????????? #? | | ??????????????Y???????? a ??????????? ?? | | ??????????????????????? k ###??????????????? | | ???????????????????????####kk #????????????????? | | ??????????????????????????###+###????????????????? | | ????????????????????????????? ??????????????????? | | ????????????????????????????? ??????????????????? | | ?????????????????????????????? ?????????????????? | | ?????????????????????????????? ?????????????????? | | ?????????????????????????????????????????????????? | | ?????????????????????????????????????????????????? | | ?????????????????????????????????????????????????? | | ?????????????????????????????????????????????????? | | ?????????????????????????????????????????????????? | | ?????????????????????????????????????????????????? | | ?????????????????????????????????????????????????? | | ?????????????????????????????????????????????????? | | ?????????????????????????????????????????????????? | | ?????????????????????????????????????????????????? | | ?????????????????????????????????????????????????? | +----------------------------------------------------+ Best States ------------- Heat Dissipation 45 Energy Generation 14 Energy Capacity 250 Matter Stores 300 Matter Capacity 300 Sight Range 16 Terrain Scan Range 16 Terrain Scan Density 10 Armor Coverage 300 Evasion (%) 61 Item Schematics ----------------- None Robot Schematics ------------------ None Fabricated ------------ Nothing Repaired ---------- Nothing Studied --------- None Alien Tech Used ----------------- None Achievements -------------- None Challenges ------------ None Game ------ Seed ThunderBlastAutominer Manual? 0 Play Time 00:12:27 Cumulative 41.4 hours Start 2026.02.28 @ 22:49:19 End 2026.02.28 @ 23:53:06 Sessions 3 Manual Loads 0 Difficulty Rogue Special Mode None Game No. 58 Rogue 33 Adventurer 25 Explorer 0 Win Type - Total 0 Types 0/0/0/0/0/0/0/0/0/0 Lore% 26 Gallery% 33 Achievement% 27 Wizard Run 0 Options --------- Layout 0 ASCII 0 Keyboard 1 Movement Numpad Keybinds 0 Fullscreen 1 Font 24/Smallcaps Map View 183x50 Zoom Use 0% Tactical HUD 1 Map Filters NONE Filters NONE Steam 1 RUN: a52ca652-6654-411f-85c8-0c4065d6c499